bitfinex-derivatives/quotes_ETHF0:USTF0_20251119
["timestamp","ask_amount","ask_price","bid_price","bid_amount"]
[1763522078074,0.52423652,3107.8,3107.7,0.31922983]
[1763522078479,0.00257652,3107.8,3107.7,0.84089983]
[1763522078672,0.52423652,3107.8,3107.7,0.84089983]
[1763522078973,0.52423652,3107.8,3107.7,0.31922983]
[1763522082283,0.00257652,3107.8,3107.7,0.84089983]
[1763522082575,0.52423652,3107.8,3107.7,0.84089983]
[1763522082771,0.00257652,3107.8,3107.7,0.84089983]
[1763522083773,3.2078,3108.1,3108.0,0.52162]
[1763522083979,3.2078,3108.1,3108.0,1.02222]
[1763522084778,0.52157,3108.3,3108.2,0.3144]
[1763522085073,0.00284407,3108.3,3108.2,0.83599]
[1763522085280,0.00284407,3108.3,3108.2,0.3144]
[1763522085479,0.52441407,3108.3,3108.2,0.3144]
[1763522085679,0.52441407,3108.3,3108.2,0.83599]
[1763522086178,0.00284407,3108.3,3108.2,0.83599]
[1763522087076,0.52441407,3108.3,3108.2,0.3144]
[1763522087280,0.52441407,3108.3,3108.2,0.83599]
[1763522087882,0.52441407,3108.3,3108.2,0.3144]
[1763522095081,0.52441407,3108.3,3108.0,0.1862]
[1763522095082,0.00284407,3108.3,3108.0,0.1862]
[1763522095290,4.84407098,3108.1,3108.0,0.1862]
[1763522097686,0.52166,3107.8,3107.7,0.00482983]
[1763522097988,1.63632098,3107.8,3107.7,0.00482983]
[1763522098790,1.66247622,3107.8,3107.7,0.00482983]
[1763522101381,10.35841622,3107.8,3107.0,0.172]
[1763522101586,10.35841622,3107.8,3106.5,0.1991151]
[1763522101587,0.52186,3106.6,3106.5,0.4825151]
[1763522101793,4.87047622,3106.6,3106.5,0.4825151]
[1763522102492,4.87047622,3106.6,3105.5,0.1591]
[1763522102493,0.52191,3106.3,3106.2,0.28822983]
[1763522102685,4.87530605,3106.6,3106.5,0.2834]
[1763522102988,3.73448983,3106.6,3106.5,0.4425]
[1763522103384,4.87530605,3106.6,3106.5,0.16258132]
[1763522104093,4.87530605,3106.6,3106.5,0.44598132]
[1763522104892,4.87530605,3106.6,3106.5,0.16258132]
[1763522106694,0.52191,3106.3,3106.2,0.00482983]
[1763522107684,0.52191,3106.3,3106.2,0.00822869]
[1763522110201,0.52191,3106.3,3106.2,0.29162869]
[1763522110698,0.52191,3106.3,3106.2,0.00822869]
[1763522113302,0.52191,3106.3,3106.2,2.869e-05]
[1763522113505,0.52194,3106.1,3106.0,0.1591]
[1763522113696,3.72974,3106.1,3106.0,0.1591]
[1763522114305,3.2078,3106.5,3106.0,0.1591]
[1763522114496,3.21087163,3106.5,3106.2,0.2834]
[1763522114794,0.52194,3106.1,3106.0,0.16150114]
[1763522114999,3.72974,3106.1,3106.0,0.16150114]
[1763522116503,0.52202,3105.6,3105.5,0.1591]
[1763522116901,0.52202,3105.6,3105.5,0.4425]
[1763522117501,0.52202,3105.6,3105.5,0.44488033]
[1763522118304,0.52202,3105.6,3105.5,0.16148033]
[1763522121106,0.52211,3105.1,3105.0,0.1591]
[1763522122212,0.52211,3105.1,3105.0,0.16160247]
[1763522126510,0.52211,3105.1,3105.0,0.18918242]
[1763522126906,1.66477563,3105.1,3105.0,0.18918242]
[1763522127811,1.66477563,3105.1,3105.0,0.03008242]
[1763522128012,0.52219,3104.6,3104.5,0.1591]
[1763522128210,4.87265563,3104.6,3104.5,0.1591]
[1763522128413,0.52228,3104.1,3104.0,1e-08]
[1763522128804,0.52228,3104.1,3104.0,0.24210001]
[1763522129009,0.52613561,3104.1,3104.0,0.24517624]
[1763522130317,0.52613561,3104.1,3104.0,0.00307624]
[1763522130913,0.52613561,3104.1,3104.0,0.24517624]
[1763522131113,0.52613561,3104.1,3104.0,0.76746624]
[1763522131511,0.52613561,3104.1,3104.0,0.24517624]
[1763522131919,0.52219,3104.6,3104.5,0.3875]
[1763522132119,1.66485563,3104.6,3104.5,0.1454]
[1763522132620,1.66485563,3104.6,3104.5,0.3875]
[1763522132823,1.66861147,3104.6,3104.5,0.3875]
[1763522134019,0.52594584,3104.6,3104.5,0.3875]
[1763522134209,0.00375584,3104.6,3104.5,4.11751]
[1763522134414,0.52697983,3104.9,3104.5,4.11751]
[1763522134415,3.2078,3105.0,3104.9,0.76424]
[1763522135112,3.2078,3105.4,3105.3,0.2421]
[1763522135519,3.21055237,3105.4,3105.3,0.2421]
[1763522135914,3.73261237,3105.4,3105.3,0.2421]
[1763522137424,0.52211,3105.2,3105.1,0.2421]
[1763522138722,0.52211,3105.2,3105.0,0.67234983]
[1763522138723,3.73262237,3105.4,3105.3,0.2421]
[1763522139620,0.52211,3105.1,3105.0,0.91444983]
[1763522140329,0.52211,3105.1,3105.0,0.39232983]
[1763522142226,0.52211,3105.1,3105.0,0.15022983]
[1763522143919,0.52211,3105.1,3105.0,0.00482983]
[1763522144927,0.52211,3105.1,3105.0,0.15022983]
[1763522145614,0.52211,3105.1,3105.0,0.00482983]
[1763522146824,0.52211,3105.1,3105.0,2.983e-05]
[1763522147028,0.52219,3104.6,3104.5,0.1454]
[1763522147325,0.52219,3104.6,3104.5,0.3875]
[1763522148022,3.2078,3104.8,3104.7,0.76428]
[1763522148233,3.72996,3104.8,3104.7,0.2421]
[1763522148730,3.2078,3104.8,3104.7,0.76428]
[1763522149129,3.72996,3104.8,3104.7,0.2421]
[1763522151132,0.52219,3104.6,3104.5,0.90971]
[1763522152833,3.2078,3104.8,3104.7,0.2421]
[1763522153333,3.72996,3104.8,3104.7,0.2421]
[1763522154837,3.72996,3104.8,3104.5,0.1454]
[1763522154838,0.52228,3104.1,3104.0,0.24517624]
[1763522156731,0.52228,3104.1,3104.0,0.00307624]
[1763522160334,4.32546999,3104.2,3104.1,0.2295]
[1763522160536,3.2078,3104.2,3104.1,0.2295]
[1763522160736,0.52224,3104.4,3104.2,0.52224]
[1763522160941,3.2078,3104.6,3104.5,0.3762]
[1763522160942,3.73001,3104.6,3104.5,0.3762]
[1763522161637,3.73001,3104.6,3104.5,0.1467]
[1763522162338,3.73001,3104.6,3104.0,0.00307624]
[1763522162339,0.52228,3104.1,3104.0,0.00307624]
[1763522166749,0.52228,3104.1,3104.0,0.00307623]
[1763522166948,0.52228,3104.1,3103.6,3.2078]
[1763522166949,0.52241,3103.3,3103.2,3.2078]
[1763522167151,0.52241,3103.3,3103.2,3.4373]
[1763522167345,0.00482983,3103.6,3103.5,0.3762]
[1763522167850,0.00482983,3103.6,3103.5,0.37975327]
[1763522168051,3.2078,3104.1,3104.0,0.1467]
[1763522168250,4.32546999,3104.1,3104.0,0.1467]
[1763522170745,4.32546999,3104.1,3104.0,0.3762]
[1763522172153,1.63994999,3104.1,3104.0,0.3762]
[1763522172743,1.63994999,3104.1,3104.0,0.1467]
[1763522174454,0.52228,3104.1,3104.0,0.3762]
[1763522174657,1.63994999,3104.1,3104.0,0.3762]
[1763522175758,1.12249982,3104.4,3104.3,0.2295]
[1763522175960,1.64472982,3104.4,3104.3,0.2295]
[1763522176151,0.52705983,3104.4,3104.3,0.75174]
[1763522176652,0.00482983,3104.4,3104.3,0.75174]
[1763522177048,0.52216,3104.8,3104.5,0.1467]
[1763522177266,3.2078,3105.0,3104.9,0.2295]
[1763522177760,3.72993,3105.0,3104.9,0.2295]
[1763522177960,0.52218,3104.7,3104.6,0.2295]
[1763522178364,0.52219,3104.6,3104.5,0.1467]
[1763522178560,0.52219,3104.6,3104.5,0.89841]
[1763522178762,0.52219,3104.6,3104.5,0.3762]
[1763522178956,0.52219,3104.6,3104.5,0.1467]
[1763522179969,0.52219,3104.6,3104.5,0.3762]
[1763522180171,0.52219,3104.6,3104.5,0.1467]
[1763522181467,0.52219,3104.6,3104.5,0.3762]
[1763522181667,1.63985999,3104.6,3104.5,0.3762]
[1763522183873,0.52219,3104.7,3104.5,0.89841]
[1763522184068,4.32546999,3105.0,3104.5,0.1467]
[1763522184269,4.32546999,3105.0,3104.6,0.2398]
[1763522184477,0.52218,3104.7,3104.6,0.2398]
[1763522184671,0.52219,3104.6,3104.5,0.3865]
[1763522185276,0.52219,3104.6,3104.5,0.90871]
[1763522185475,0.52219,3104.6,3104.5,0.3865]
[1763522185880,0.52219,3104.6,3104.5,0.1467]
[1763522186378,0.52221,3104.5,3104.4,3.2078]
[1763522190771,0.52228,3104.1,3104.0,0.1467]
[1763522190977,1.63994999,3104.1,3104.0,0.1467]
[1763522191179,0.52228,3104.1,3104.0,0.1467]
[1763522192593,0.52236,3103.6,3103.5,3.60495327]
[1763522192886,1.64002999,3103.6,3103.5,3.60495327]
[1763522193488,0.52234,3103.7,3103.6,0.2469]
[1763522193686,1.11766999,3103.9,3103.6,0.2469]
[1763522193886,0.52234,3103.7,3103.6,0.2469]
[1763522194087,0.52236,3103.6,3103.5,3.60495327]
[1763522194989,0.52235,3103.7,3103.6,0.52236]
[1763522195189,0.52235,3103.7,3103.6,0.76926]
[1763522195390,0.52235,3103.7,3103.6,0.2469]
[1763522197488,0.52235,3103.7,3103.5,0.15025327]
[1763522197489,0.52236,3103.6,3103.5,0.15025327]
[1763522197679,1.64002999,3103.6,3103.5,0.15025327]
[1763522198081,1.64002999,3103.6,3103.2,0.0048183]
[1763522198389,4.84787999,3103.3,3103.2,0.0048183]
[1763522199291,4.84787999,3103.3,3103.2,0.00896822]
[1763522200588,0.52253,3102.6,3102.3,3.2078]
[1763522200789,0.52253,3102.6,3101.0,10.4617]
[1763522200790,0.52267,3101.8,3101.6,0.2469]
[1763522201095,0.52266,3101.8,3101.7,0.2469]
[1763522201292,0.52266,3101.8,3101.7,0.26453473]
[1763522201790,0.52679425,3101.8,3101.7,0.02045958]
[1763522201996,1.64446424,3101.8,3101.7,0.02045958]
[1763522202193,0.00413425,3101.8,3101.7,0.02045958]
[1763522202496,1.12180424,3101.8,3101.7,0.02045958]
[1763522202792,0.00413425,3101.8,3101.7,0.28499431]
[1763522203191,0.00413425,3101.8,3101.7,0.03809431]
[1763522204296,0.00413425,3101.8,3101.0,0.1347]
[1763522204297,3.22813425,3101.8,3101.0,0.1347]
[1763522204497,3.2078,3101.1,3101.0,0.3816]
[1763522204996,3.73058,3101.1,3101.0,0.15233473]
[1763522205188,3.73058,3101.1,3101.0,0.15620111]
[1763522206296,3.73058,3101.1,3101.0,0.13856638]
[1763522206599,3.73058,3101.1,3101.0,0.17383789]
[1763522208202,3.73058,3101.1,3101.0,0.42073789]
[1763522208598,3.73058,3101.1,3101.0,0.17383789]
[1763522210095,3.2078,3101.5,3101.4,0.2469]
[1763522210503,3.2078,3101.5,3101.4,0.28217151]
[1763522211811,3.2078,3101.5,3101.4,0.03527151]
[1763522212711,3.2078,3101.5,3101.4,0.28217151]
[1763522214310,0.00413425,3101.8,3101.7,0.2469]
[1763522214510,0.00413425,3101.8,3101.7,0.28217151]
[1763522215007,0.00482983,3102.1,3101.7,0.28217151]
[1763522215209,0.00482983,3102.1,3102.0,0.90423]
[1763522215407,0.52253,3102.7,3102.6,0.2469]
[1763522216009,0.52484168,3102.7,3102.6,0.2469]
[1763522216309,0.00231168,3102.7,3102.6,0.2469]
[1763522216511,0.00231168,3102.7,3102.6,0.28217151]
[1763522217116,0.00482983,3103.0,3102.9,0.2469]
[1763522217304,0.52251,3102.8,3102.6,0.03527151]
[1763522217510,0.48725849,3102.6,3102.5,0.1347]
[1763522218011,0.48968575,3102.6,3102.5,0.3816]
[1763522218213,0.00242726,3102.6,3102.5,0.3816]
[1763522219818,0.00242726,3102.6,3102.5,0.1347]
[1763522220319,0.00242726,3102.6,3102.5,0.3647]
[1763522220713,0.00242726,3102.6,3102.5,0.1347]
[1763522221416,0.52255,3102.5,3102.3,0.00482983]
[1763522224215,3.2078,3102.4,3102.3,0.23482983]
[1763522224415,0.00242726,3102.6,3102.3,0.23482983]
[1763522224416,0.00242726,3102.6,3102.4,0.23]
[1763522224620,0.52496726,3102.6,3102.5,0.3774]
[1763522225021,0.52496726,3102.6,3102.5,0.1474]
[1763522225411,0.52496726,3102.6,3102.5,0.3774]
[1763522225618,0.52256,3102.4,3102.3,0.00482983]
[1763522225816,3.73036,3102.4,3102.3,0.00482983]
[1763522226318,0.52256,3102.4,3102.3,0.00482983]
[1763522228121,0.52256,3102.4,3102.3,0.23482983]
[1763522228421,0.52256,3102.4,3102.3,0.00482983]
[1763522229821,0.5227,3101.6,3101.5,0.1347]
[1763522230022,3.2078,3102.0,3101.5,0.3647]
[1763522231125,0.5227,3101.6,3101.5,0.3647]
[1763522231724,0.5227,3101.6,3101.5,0.1347]
[1763522232025,0.5227,3101.6,3101.5,0.3647]
[1763522232825,0.5227,3101.6,3101.5,0.88742]
[1763522233014,0.5227,3101.6,3101.5,0.3647]
[1763522233419,0.52278,3101.1,3101.0,0.36856638]
[1763522234918,0.52275,3101.3,3101.1,0.52278]
[1763522235125,0.52275,3101.3,3101.2,0.75277]
[1763522235923,0.0303,3101.1,3100.5,0.1474]
[1763522236124,0.52304,3099.6,3099.5,0.3774]
[1763522236324,0.70074,3099.6,3099.5,0.1474]
[1763522236623,0.52312,3099.1,3099.0,0.3774]
[1763522237128,0.52603494,3099.1,3099.0,0.38110345]
[1763522238119,0.00291494,3099.1,3099.0,0.38110345]
[1763522238321,3.2078,3099.2,3099.1,0.75312]
[1763522238629,2.567,3100.9,3099.0,6.15110345]
[1763522238630,3.2078,3099.6,3099.5,0.23]
[1763522239422,3.21191357,3099.6,3099.5,0.23]
[1763522240123,3.44801357,3099.6,3099.5,0.23]
[1763522240526,3.21191357,3099.6,3099.5,0.23]
[1763522241125,0.00411357,3099.6,3099.5,0.3543]
[1763522241329,0.00411357,3099.6,3099.5,0.23]
[1763522241524,0.00411357,3099.6,3099.5,0.3543]
[1763522241931,0.00411357,3099.6,3099.5,0.23]
[1763522242329,0.25091357,3099.6,3099.5,0.23]
[1763522242529,0.52309,3099.3,3099.2,0.25653785]
[1763522242727,0.00411357,3099.6,3099.2,0.25653785]
[1763522243030,0.00411357,3099.6,3099.5,0.91805]
[1763522243536,0.00411357,3099.6,3099.5,0.395]
[1763522244235,0.00483785,3099.9,3099.8,0.2517]
[1763522244736,0.00483785,3099.9,3099.8,0.7747]
[1763522245225,0.00713578,3099.9,3099.8,0.7747]
[1763522245833,0.00713578,3099.9,3099.8,0.2517]
[1763522247534,3.3243,3101.0,3100.5,0.2519]
[1763522247735,0.52295,3100.2,3099.9,0.52298]
[1763522248038,0.75515,3100.2,3100.1,0.2519]
[1763522248530,0.2322,3099.9,3099.8,3.4597]
[1763522248729,0.75519,3099.9,3099.8,3.4597]
[1763522248939,0.75519,3099.9,3099.8,3.9827]
[1763522249435,0.52299,3099.9,3099.8,3.9827]
[1763522249635,0.00231284,3100.2,3100.1,0.2519]
[1763522249836,0.52524284,3100.2,3100.1,0.2519]
[1763522250135,0.52524284,3100.2,3099.8,3.2078]
[1763522250136,0.75519,3099.9,3099.8,3.4597]
[1763522251133,0.2322,3099.9,3099.8,3.4597]
[1763522251334,0.00231284,3100.2,3099.9,0.52299]
[1763522251535,0.75744284,3100.2,3100.1,0.2519]
[1763522252928,0.1463,3100.0,3099.8,3.2078]
[1763522253133,0.90146,3100.0,3099.9,0.2519]
[1763522253332,0.52296,3100.0,3099.9,0.2519]
[1763522254641,0.75516,3100.0,3099.9,0.2519]
[1763522255342,0.75518,3099.9,3099.8,3.2078]
[1763522255732,0.75518,3099.9,3099.8,3.98269]
[1763522255937,0.52298,3099.9,3099.8,3.98269]
[1763522256948,0.00231284,3100.2,3100.1,0.2519]
[1763522257145,0.00231284,3100.2,3100.1,0.77484]
[1763522258547,0.52524284,3100.2,3100.1,0.77484]
[1763522258747,0.00231284,3100.2,3100.1,0.77484]
[1763522260853,0.75744284,3100.2,3100.1,0.2519]
[1763522261244,0.23451284,3100.2,3100.1,0.77484]
[1763522261450,0.75744284,3100.2,3100.1,0.77484]
[1763522263252,0.75744284,3100.2,3100.1,0.2519]
[1763522263449,0.75518,3099.9,3099.8,3.4597]
[1763522264255,0.3785,3100.0,3099.9,0.77488]
[1763522264457,0.2322,3100.0,3099.9,0.77488]
[1763522265151,0.90146,3100.0,3099.9,0.2519]
[1763522265851,0.90154,3099.5,3099.4,0.2519]
[1763522266049,0.3785,3099.5,3099.4,0.2519]
[1763522266250,0.90154,3099.5,3099.4,0.2519]
[1763522266955,0.90154,3099.5,3099.4,0.77496]
[1763522267355,0.2322,3099.3,3099.2,0.25673785]
[1763522267557,0.75528,3099.3,3099.2,0.25673785]
[1763522267945,0.75528,3099.3,3099.2,0.00483785]
[1763522271162,3.96308,3099.3,3099.2,3.785e-05]
[1763522272572,0.7554,3098.6,3098.5,3.2078]
[1763522272758,0.7554,3098.6,3098.5,3.4597]
[1763522273652,0.7554,3098.6,3098.5,3.46333864]
[1763522274862,0.7554,3098.6,3098.5,3.21143864]
[1763522275263,0.7554,3098.6,3098.5,3.46333864]
[1763522275666,0.7554,3098.6,3098.5,0.25553864]
[1763522276063,3.2078,3098.8,3098.2,0.25673785]
[1763522276064,0.52325,3098.3,3098.2,0.25673785]
[1763522276267,0.3785,3098.5,3098.4,0.2519]
[1763522276562,0.3785,3098.5,3098.2,0.00483785]
[1763522276563,0.75545,3098.3,3098.2,0.25673785]
[1763522277054,0.75545,3098.3,3098.2,0.26079496]
[1763522277662,0.75545,3098.3,3098.2,0.00889496]
[1763522279859,3.96325,3098.3,3098.2,0.00889496]
[1763522280062,0.75995,3097.7,3097.6,3.2078]
[1763522280364,0.75995,3097.7,3097.6,3.4437]
[1763522281155,0.7640607,3097.7,3097.6,3.44683835]
[1763522281360,0.0041107,3097.7,3097.6,3.97019835]
[1763522281965,0.1463,3098.5,3098.4,0.75913]
[1763522282159,3.2078,3098.7,3098.6,0.7591]
[1763522282356,0.52309,3099.3,3098.8,0.75906]
[1763522282555,0.5231,3099.2,3098.8,3.96686]
[1763522282763,0.24143785,3098.9,3098.8,3.96686]
[1763522283162,0.00746424,3098.9,3098.8,3.96686]
[1763522283365,3.2078,3099.5,3099.4,0.75896]
[1763522283568,0.1429,3100.0,3099.7,0.2359]
[1763522283569,0.523,3099.8,3099.7,0.2359]
[1763522284171,0.52304,3099.5,3099.4,0.2359]
[1763522284366,3.2078,3099.9,3099.8,0.2359]
[1763522284571,3.44806671,3099.9,3099.8,0.23985212]
[1763522285574,3.44806671,3099.9,3099.8,0.00395212]
[1763522286571,0.75968,3099.3,3099.2,3.2078]
[1763522286869,0.2366,3099.3,3099.2,3.2078]
[1763522287072,0.1429,3099.5,3099.2,3.4437]
[1763522287372,0.2366,3099.3,3099.2,3.2078]
[1763522287568,0.2366,3099.3,3099.2,3.21105931]
[1763522287773,0.52307,3099.4,3099.2,3.44695931]
[1763522287974,0.52307,3099.4,3099.3,0.2359]
[1763522288175,0.2366,3099.3,3099.2,3.21105931]
[1763522288374,0.75967,3099.4,3099.3,0.2359]
[1763522288777,0.75963,3099.6,3099.5,0.2359]
[1763522288976,0.52306,3099.4,3099.2,3.73414931]
[1763522289169,1.74448652,3099.7,3099.2,3.21105931]
[1763522289371,1.74448652,3099.7,3099.4,0.2359]
[1763522289372,0.75965,3099.5,3099.4,0.2359]
[1763522289569,0.75968,3099.3,3099.2,3.44695931]
[1763522289763,0.1429,3099.5,3099.2,3.44695931]
[1763522289975,0.66596,3099.5,3099.4,0.2359]
[1763522290574,0.90256,3099.5,3099.4,0.2359]
[1763522290777,0.52308,3099.3,3099.2,3.44695931]
[1763522290977,0.52306,3099.5,3099.4,0.2359]
[1763522291477,0.90256,3099.5,3099.4,0.2359]
[1763522291772,0.75962,3099.7,3099.6,0.2359]
[1763522291971,0.52302,3099.7,3099.6,0.2359]
[1763522292277,0.75962,3099.7,3099.6,0.2359]
[1763522292477,0.2366,3099.3,3099.2,3.44695931]
[1763522292772,0.52307,3099.4,3099.3,0.2359]
[1763522293077,3.21146671,3099.9,3099.2,3.21105931]
[1763522293278,0.75966,3099.4,3099.3,0.2359]
[1763522293772,0.75966,3099.4,3099.3,0.75898]
[1763522293978,0.52304,3099.6,3099.5,0.2359]
[1763522294371,0.75967,3099.4,3099.3,0.2359]
[1763522295181,0.52307,3099.4,3099.3,0.2359]
[1763522295378,0.75967,3099.4,3099.3,0.2359]
[1763522295774,0.2366,3099.4,3099.2,3.21105931]
[1763522295980,0.1429,3099.5,3099.2,3.21105931]
[1763522295981,0.75968,3099.3,3099.2,3.21105931]
[1763522296178,0.75968,3099.3,3099.2,0.00325931]
[1763522296480,0.75968,3099.3,3098.6,3.2078]
[1763522296481,0.2366,3098.3,3098.2,3.2078]
[1763522296682,1.88738652,3098.5,3097.8,3.73113]
[1763522297078,0.00483785,3098.6,3098.3,3.73104]
[1763522297379,0.76463785,3098.6,3098.5,0.2359]
[1763522297781,0.75983,3098.4,3098.3,3.21040378]
[1763522298079,0.24143785,3098.6,3098.3,3.21040378]
[1763522298283,0.2366,3098.4,3098.3,3.21040378]
[1763522299189,0.2366,3098.4,3098.3,3.44630378]
[1763522300375,0.66611,3098.5,3098.3,3.96954378]
[1763522300884,0.90271,3098.5,3098.4,0.2359]
[1763522301178,0.00483785,3098.6,3098.5,0.2359]
[1763522301385,0.24143785,3098.6,3098.5,0.2359]
[1763522301684,0.2366,3098.4,3098.3,3.44630378]
[1763522301880,0.2366,3098.4,3098.3,3.21040378]
[1763522302484,0.2366,3098.4,3098.3,0.00260378]
[1763522303090,0.75983,3098.4,3098.3,0.00260378]
[1763522303391,0.75983,3098.4,3098.3,0.23850378]
[1763522303592,0.00483785,3098.6,3098.3,0.23850378]
[1763522303593,0.23443785,3098.6,3098.5,0.2298]
[1763522303886,0.00483785,3098.6,3098.5,0.88971]
[1763522304091,0.00483785,3098.6,3098.5,0.75301]
[1763522304492,0.00483785,3098.6,3098.5,0.88971]
[1763522304786,3.785e-05,3098.6,3098.5,0.88971]
[1763522305182,0.52306,3099.4,3099.3,0.75288]
[1763522305593,3.73084,3099.6,3099.5,0.2298]
[1763522306088,0.2296,3099.3,3099.2,0.00483785]
[1763522306283,0.75268,3099.3,3099.2,0.00483785]
[1763522308188,0.771,3098.6,3098.5,3.2078]
[1763522308794,0.52317,3098.8,3098.7,0.2345]
[1763522308994,0.771,3098.6,3098.5,3.4423]
[1763522309194,0.771,3098.6,3098.5,3.2078]
[1763522309396,0.77103,3098.4,3098.3,0.00260378]
[1763522311893,0.77103,3098.4,3098.3,0.23710378]
[1763522312294,0.77103,3098.4,3098.3,0.00260378]
[1763522312902,0.77103,3098.4,3098.3,0.23710378]
[1763522313106,0.52323,3098.4,3098.3,0.23710378]
[1763522313806,0.77103,3098.4,3098.3,0.00260378]
[1763522314494,0.1381,3098.5,3098.4,0.2345]
[1763522314695,0.3859,3098.5,3098.4,0.2345]
[1763522315194,0.90911,3098.5,3098.4,0.2345]
[1763522317105,0.77103,3098.4,3098.3,0.00260378]
[1763522318203,0.77103,3098.4,3098.3,0.76035378]
[1763522318909,0.77103,3098.4,3098.3,0.23710378]
[1763522319104,0.77103,3098.4,3098.3,0.00260378]
[1763522320413,0.2478,3097.9,3097.4,3.2078]
[1763522320618,0.2478,3097.5,3097.4,3.4423]
[1763522321415,0.14293785,3098.0,3097.5,0.52338]
[1763522321611,0.14554945,3098.0,3097.5,0.52338]
[1763522321818,0.2478,3097.6,3097.5,0.75788]
[1763522322718,0.77117,3097.6,3097.5,0.75788]
[1763522323014,0.2478,3097.6,3097.5,0.75788]
[1763522323214,0.00744945,3098.0,3097.9,0.2345]
[1763522323519,0.53074945,3098.0,3097.9,0.75781]
[1763522323708,0.77115,3097.7,3097.6,0.2345]
[1763522323908,0.52333,3097.8,3097.6,0.2345]
[1763522324116,0.52333,3097.8,3097.7,0.75785]
[1763522325022,0.39334945,3098.0,3097.9,0.2345]
[1763522325522,0.39334945,3098.0,3097.4,3.21042016]
[1763522325824,0.77116,3097.7,3097.6,0.75786]
[1763522326119,0.52333,3097.9,3097.8,0.52333]
[1763522326419,0.52333,3097.9,3097.8,0.75783]
[1763522327916,0.52333,3097.9,3097.8,0.2345]
[1763522328124,0.77116,3097.7,3097.6,0.2345]
[1763522328425,0.91664945,3098.0,3097.9,0.2345]
[1763522328820,0.77854945,3098.0,3097.9,0.2345]
[1763522329015,0.00744945,3098.0,3097.9,0.75781]
[1763522329221,0.53074945,3098.0,3097.9,0.75781]
[1763522329420,0.77854945,3098.0,3097.9,0.75781]
[1763522329921,0.00744945,3098.0,3097.9,0.75781]
[1763522331028,0.52321,3098.5,3098.4,0.52323]
[1763522331223,1.88258652,3099.0,3098.6,0.7577]
[1763522331224,3.2078,3099.0,3098.6,0.7577]
[1763522331428,3.2078,3099.0,3098.5,0.1367]
[1763522331429,0.3859,3099.0,3098.9,0.2345]
[1763522331926,5.08878652,3099.5,3098.9,0.2345]
[1763522331927,0.77091,3099.1,3099.0,0.2345]
[1763522332131,0.77096,3098.8,3098.7,3.2078]
[1763522332523,0.77096,3098.8,3098.7,3.4423]
[1763522332731,0.52316,3098.8,3098.7,3.4423]
[1763522333133,0.77096,3098.8,3098.7,3.2078]
[1763522333433,0.77098,3098.7,3098.6,0.00483785]
[1763522333636,0.77098,3098.7,3098.6,0.23933785]
[1763522334832,0.77098,3098.7,3098.6,0.00483785]
[1763522335233,0.77098,3098.7,3098.6,0.52803785]
[1763522335434,0.77098,3098.7,3098.6,0.76253785]
[1763522335732,0.77098,3098.7,3098.6,0.00483785]
[1763522336435,0.2478,3098.0,3097.9,3.96561]
[1763522336635,0.52328,3098.1,3097.9,3.96561]
[1763522336835,0.52328,3098.1,3098.0,0.2345]
[1763522337128,0.1381,3098.5,3098.2,0.2345]
[1763522337328,0.52326,3098.3,3098.2,0.2304]
[1763522337533,0.75546,3098.3,3098.2,0.2304]
[1763522337939,0.5233,3098.0,3097.9,3.9615]
[1763522338136,0.1403,3098.5,3097.9,3.2078]
[1763522338336,0.75547,3098.2,3098.1,0.75368]
[1763522338536,0.52327,3098.2,3098.1,0.75368]
[1763522338737,3.2078,3098.7,3098.6,0.2304]
[1763522338932,3.44,3098.7,3098.6,0.2304]
[1763522339134,0.75538,3098.7,3098.6,0.2304]
[1763522339332,0.52318,3098.7,3098.6,0.2304]
[1763522339738,0.75538,3098.7,3098.6,0.2304]
[1763522340636,0.75543,3098.4,3098.3,0.2304]
[1763522341139,0.75548,3098.2,3098.1,0.2304]
[1763522341640,0.75548,3098.2,3098.1,0.75368]
[1763522342035,0.2322,3098.2,3097.9,0.5233]
[1763522342337,0.2322,3098.2,3097.8,3.2078]
[1763522342338,0.75551,3097.9,3097.8,3.2078]
[1763522343038,0.3725,3098.0,3097.9,0.2304]
[1763522343235,0.75551,3097.9,3097.8,3.2078]
[1763522343435,0.75555,3097.7,3097.6,0.75376]
[1763522343937,0.75555,3097.7,3097.6,0.2304]
[1763522345541,0.89588,3097.5,3097.4,0.23302016]
[1763522347038,0.89588,3097.5,3097.4,0.00262016]
[1763522347240,0.89588,3097.5,3095.2,3.2078]
[1763522347241,0.1993,3095.7,3095.2,3.2078]
[1763522347437,3.4071,3095.6,3095.5,0.1455]
[1763522347638,0.52374,3095.4,3095.1,3.2078]
[1763522347941,3.2078,3095.2,3095.1,3.4382]
[1763522348143,3.21086657,3095.2,3095.1,3.44135985]
[1763522349733,3.41016657,3095.2,3095.1,3.21095985]
[1763522349937,9.21086657,3095.2,3094.0,0.1335]
[1763522350135,0.52397,3094.0,3093.5,0.1455]
[1763522350334,3.2078,3093.6,3093.5,0.3759]
[1763522350541,3.4071,3093.6,3093.5,0.1455]
[1763522350848,3.4071,3093.6,3093.5,3.35737097]
[1763522351049,3.4071,3093.6,3093.5,0.00407097]
[1763522351740,3.4071,3093.6,3086.4,3.44162425]
[1763522351741,0.1993,3092.5,3091.9,3.2078]
[1763522351944,3.2078,3092.3,3091.8,0.52435]
[1763522352246,0.00484582,3092.5,3092.4,0.2304]
[1763522352435,0.00484582,3092.5,3092.4,3.4382]
[1763522352638,0.00890146,3092.5,3092.4,3.44083791]
[1763522352839,0.20820146,3092.5,3092.4,3.21043791]
[1763522353138,0.20820146,3092.5,3092.4,0.00263791]
[1763522354342,0.20820146,3092.5,3092.4,3.21043791]
[1763522355048,0.00890146,3092.5,3092.4,3.44083791]
[1763522355247,0.20820146,3092.5,3092.4,3.21043791]
[1763522355448,0.20820146,3092.5,3092.4,0.00263791]
[1763522356345,0.00890146,3092.5,3092.4,3.44083791]
[1763522356546,0.20820146,3092.5,3092.4,0.00263791]
[1763522356750,0.00890146,3092.5,3092.4,3.44083791]
[1763522356949,3.3481,3094.5,3092.5,0.1455]